bitfinex/quotes_BTCUSD_20220304
["timestamp","ask_amount","ask_price","bid_price","bid_amount"]
[1646412662358,0.40091098,40838.0,40837.0,0.00019574]
[1646412662558,0.45001098,40838.0,40837.0,0.00019574]
[1646412662825,0.7514,40837.0,40835.0,0.061289]
[1646412663021,0.1891,40836.0,40835.0,0.061289]
[1646412663219,0.0491,40836.0,40835.0,0.061289]
[1646412664118,0.15697751,40836.0,40835.0,0.061289]
[1646412667467,0.15697751,40836.0,40835.0,0.311289]
[1646412669166,0.15697751,40836.0,40835.0,0.361289]
[1646412669366,0.90837751,40836.0,40835.0,0.361289]
[1646412669770,0.15697751,40836.0,40835.0,0.361289]
[1646412670810,0.90837751,40836.0,40835.0,0.361289]
[1646412671310,0.15697751,40836.0,40835.0,0.361289]
[1646412671510,0.90837751,40836.0,40835.0,0.361289]
[1646412673312,0.15697751,40836.0,40835.0,0.361289]
[1646412673512,0.15697751,40836.0,40835.0,0.311289]
[1646412673513,0.90837751,40836.0,40835.0,0.311289]
[1646412673714,1.05837751,40836.0,40835.0,0.311289]
[1646412674257,0.30697751,40836.0,40835.0,0.311289]
[1646412674461,0.90837751,40836.0,40835.0,0.311289]
[1646412674857,0.15697751,40836.0,40835.0,0.311289]
[1646412675762,0.55794088,40836.0,40835.0,0.311289]
[1646412676160,0.15697751,40836.0,40835.0,0.311289]
[1646412676558,0.90837751,40836.0,40835.0,0.311289]
[1646412676758,0.90837751,40836.0,40835.0,0.25]
[1646412676958,0.26826251,40836.0,40835.0,0.25]
[1646412677559,1.01966251,40836.0,40835.0,0.25]
[1646412677806,0.26826251,40836.0,40835.0,0.25]
[1646412678610,1.01966251,40836.0,40835.0,0.25]
[1646412679008,1.42062927,40836.0,40835.0,0.25]
[1646412679806,0.66922927,40836.0,40835.0,0.25]
[1646412680007,0.26826251,40836.0,40835.0,0.25]
[1646412680407,0.16916251,40836.0,40835.0,0.55]
[1646412680610,0.16916251,40836.0,40835.0,0.25]
[1646412680611,0.10787751,40836.0,40835.0,0.25]
[1646412680811,0.10787751,40836.0,40835.0,0.3]
[1646412681310,0.10787751,40836.0,40835.0,0.25]
[1646412681761,0.10787751,40836.0,40835.0,0.53237139]
[1646412682164,0.10787751,40836.0,40835.0,0.25]
[1646412682764,0.16915651,40836.0,40835.0,0.25]
[1646412683163,0.16915651,40836.0,40835.0,0.24993382]
[1646412683763,0.00551626,40836.0,40835.0,0.24993382]
[1646412683965,0.18384031,40837.0,40835.0,0.24993382]
[1646412684163,0.12256,40837.0,40835.0,0.24993382]
[1646412684369,0.061279,40836.0,40835.0,0.24993382]
[1646412685609,0.0611773,40836.0,40835.0,0.24993382]
[1646412686507,0.8125773,40836.0,40835.0,0.24993382]
[1646412686708,0.9125773,40836.0,40835.0,0.24993382]
[1646412687108,0.9616773,40836.0,40835.0,0.24993382]
[1646412687508,0.2602773,40836.0,40835.0,0.24993382]
[1646412688010,0.1602773,40836.0,40835.0,0.24993382]
[1646412688209,0.2602773,40836.0,40835.0,0.24993382]
[1646412690657,0.2111773,40836.0,40835.0,0.24993382]
[1646412690957,0.1611773,40836.0,40835.0,0.24993382]
[1646412691162,0.2111773,40836.0,40835.0,0.24993382]
[1646412691660,0.14019947,40836.0,40835.0,0.22096974]
[1646412691855,0.24019947,40836.0,40835.0,0.22096974]
[1646412692708,0.14019947,40836.0,40835.0,0.22096974]
[1646412692910,0.24019947,40836.0,40835.0,0.22096974]
[1646412693412,0.27232196,40836.0,40835.0,0.22096974]
[1646412693813,0.24019947,40836.0,40835.0,0.22096974]
[1646412694011,0.14019947,40836.0,40835.0,0.22096974]
[1646412694210,0.24019947,40836.0,40835.0,0.22096974]
[1646412696013,1.39256623,40836.0,40835.0,0.22096974]
[1646412696212,0.99159947,40836.0,40835.0,0.22096974]
[1646412696477,1.14835054,40836.0,40835.0,0.13768954]
[1646412696874,1.18047303,40836.0,40835.0,0.13768954]
[1646412697676,1.18047303,40836.0,40835.0,0.12818212]
[1646412698073,1.18047303,40836.0,40833.0,0.00019467]
[1646412698074,0.7514,40834.0,40833.0,0.00019467]
[1646412698274,1.01164466,40834.0,40833.0,0.00019467]
[1646412698675,1.06164466,40834.0,40833.0,0.00019467]
[1646412698876,0.90542535,40832.0,40831.0,0.5]
[1646412699078,1.06567001,40832.0,40831.0,0.50019468]
[1646412699378,1.51493214,40832.0,40831.0,0.13236668]
[1646412699575,1.71493214,40832.0,40831.0,0.13236668]
[1646412699775,1.82248411,40832.0,40831.0,0.13236668]
[1646412699974,1.93582095,40832.0,40831.0,0.132172]
[1646412700431,1.94014363,40832.0,40831.0,0.132172]
[1646412700630,1.82680679,40832.0,40831.0,0.132172]
[1646412700836,0.3084834,40818.0,40809.0,1.1464]
[1646412701032,0.35100561,40817.0,40809.0,0.1747]
[1646412701231,0.40100561,40817.0,40812.0,0.061305]
[1646412701932,0.061307,40816.0,40812.0,0.061305]
[1646412702731,0.061307,40816.0,40812.0,0.06152867]
[1646412703734,0.061307,40816.0,40810.0,0.122607]
[1646412703966,0.40010561,40815.0,40812.0,0.00022367]
[1646412704170,0.35100561,40814.0,40812.0,0.00022367]
[1646412704369,0.3831281,40813.0,40812.0,0.00022367]
[1646412704566,0.5822281,40813.0,40812.0,0.00022367]
[1646412704765,0.25629342,40813.0,40812.0,0.00016367]
[1646412705167,0.31364578,40811.0,40801.0,0.45324492]
[1646412705367,0.12265141,40809.0,40801.0,0.161]
[1646412705667,0.17175141,40809.0,40804.0,0.24801763]
[1646412705868,0.17175141,40809.0,40803.0,0.15920597]
[1646412706170,0.17175141,40809.0,40801.0,0.161]
[1646412706368,0.17175141,40809.0,40801.0,0.211]
[1646412706968,0.17175141,40809.0,40803.0,0.21338871]
[1646412707169,0.17175141,40809.0,40803.0,0.26338871]
[1646412707708,0.17175141,40809.0,40801.0,0.35576313]
[1646412707709,0.12264037,40807.0,40804.0,0.00022349]
[1646412708109,0.12264037,40807.0,40803.0,0.24522349]
[1646412716026,0.12344035,40807.0,40803.0,0.24522349]
[1646412718128,0.17344035,40807.0,40803.0,0.24522349]
[1646412720269,0.12344035,40807.0,40803.0,0.24522349]
[1646412720469,0.12268,40804.0,40803.0,0.24522349]
[1646412720670,1.22318,40804.0,40803.0,0.24522349]
[1646412720869,1.22318,40804.0,40803.0,0.1995128]
[1646412720870,1.42318,40804.0,40803.0,0.1995128]
[1646412721269,1.12318,40804.0,40803.0,0.1995128]
[1646412722073,1.15530249,40804.0,40803.0,0.1995128]
[1646412722718,1.45530249,40804.0,40803.0,0.1995128]
[1646412723919,1.66311331,40804.0,40803.0,0.1995128]
[1646412725720,1.66311331,40804.0,40801.0,0.00020819]
[1646412725721,0.812752,40802.0,40801.0,0.00020819]
[1646412725923,1.26666629,40802.0,40801.0,0.00020819]
[1646412726122,1.46666629,40802.0,40801.0,0.00020819]
[1646412726766,0.06135,40801.0,40799.0,0.00020818]
[1646412726965,1.13262249,40800.0,40799.0,0.00020818]
[1646412727166,1.23262249,40800.0,40799.0,0.00020818]
[1646412727365,1.33262249,40800.0,40799.0,0.00020818]
[1646412727772,0.30773185,40790.0,40786.0,0.1671]
[1646412727969,0.15773185,40790.0,40786.0,0.28674223]
[1646412728169,0.1,40790.0,40780.0,0.6216]
[1646412728372,0.3491,40789.0,40780.0,0.1709]
[1646412728770,0.1,40788.0,40780.0,0.1709]
[1646412728978,0.0491,40787.0,40780.0,0.1709]
[1646412729170,0.0491,40787.0,40775.0,0.5359]
[1646412729171,0.7514,40782.0,40775.0,0.5359]
[1646412729372,0.7514,40782.0,40773.0,0.5]
[1646412729373,0.08122249,40782.0,40773.0,0.5]
[1646412729571,0.08122249,40782.0,40771.0,0.071369]
[1646412729572,0.53122249,40782.0,40771.0,0.071369]
[1646412729771,0.23122249,40782.0,40771.0,0.071369]
[1646412730209,0.29258949,40782.0,40774.0,0.21229186]
[1646412730414,0.29258949,40782.0,40776.0,0.21381915]
[1646412730613,0.08122249,40782.0,40777.0,0.061359]
[1646412730813,0.08122249,40782.0,40781.0,0.00817108]
[1646412731715,0.08122249,40782.0,40779.0,0.00022338]
[1646412732012,0.0491,40782.0,40779.0,0.00022338]
[1646412732614,0.061361,40781.0,40777.0,0.061359]
[1646412732918,0.061361,40781.0,40778.0,0.00022339]
[1646412732919,1.161861,40781.0,40778.0,0.00022339]
[1646412733960,1.22323412,40781.0,40777.0,0.00022339]
[1646412734360,1.23963211,40781.0,40777.0,0.00022339]
[1646412734963,1.23963211,40781.0,40772.0,0.23644815]
[1646412735163,0.75891461,40779.0,40777.0,0.00022339]
[1646412735362,0.0491,40778.0,40777.0,0.00022339]
[1646412736164,0.0491,40778.0,40771.0,0.01]
[1646412736363,0.0491,40778.0,40775.0,0.0002234]
[1646412736364,0.8005,40778.0,40775.0,0.0002234]
[1646412737466,0.061368,40777.0,40771.0,0.01]
[1646412737717,0.1,40777.0,40774.0,0.0002234]
[1646412738120,0.1,40777.0,40775.0,0.22]
[1646412738520,0.06,40777.0,40776.0,0.50171974]
[1646412738719,0.09019651,40788.0,40786.0,0.27491796]
[1646412738919,0.09019651,40788.0,40783.0,0.27913295]
[1646412739119,0.09019651,40788.0,40779.0,0.22454]
[1646412739319,0.09019651,40788.0,40779.0,0.1]
[1646412739518,0.09019651,40788.0,40779.0,0.09]
[1646412739718,0.09019651,40788.0,40779.0,0.04]
[1646412739919,0.09019651,40788.0,40784.0,0.061346]
[1646412740119,0.15154651,40788.0,40784.0,0.061346]
[1646412740921,0.15154651,40788.0,40783.0,0.122691]
[1646412741120,0.15154651,40788.0,40779.0,0.101362]
[1646412741121,0.061355,40784.0,40779.0,0.101362]
[1646412741321,0.02095467,40782.0,40779.0,0.101362]
[1646412742065,0.02095467,40782.0,40780.0,0.35046734]
[1646412742265,0.02095467,40782.0,40781.0,0.05]
[1646412743570,0.02095467,40782.0,40771.0,0.005]
[1646412743571,0.7514,40781.0,40771.0,0.005]
[1646412743768,0.7514,40778.0,40773.0,0.00084068]
[1646412744066,0.0491,40777.0,40773.0,0.00084068]
[1646412744667,0.0491,40777.0,40771.0,0.005]
[1646412744668,0.061372,40776.0,40771.0,0.005]
[1646412744868,0.061372,40776.0,40773.0,0.00021016]
[1646412745069,0.061372,40776.0,40773.0,0.06158116]
[1646412745318,0.02095467,40782.0,40773.0,0.06158116]
[1646412745617,0.02395467,40782.0,40773.0,0.06158116]
[1646412745922,0.02395467,40782.0,40776.0,0.28231222]
[1646412746117,0.02395467,40782.0,40776.0,0.061363]
[1646412746316,0.061362,40779.0,40776.0,0.061363]
[1646412746515,0.061362,40779.0,40775.0,0.00021015]
[1646412747118,0.061362,40779.0,40771.0,0.005]
[1646412747119,1.1005,40778.0,40771.0,0.005]
[1646412747319,0.7514,40776.0,40775.0,0.00020762]
[1646412747518,0.8005,40776.0,40775.0,0.00020762]
[1646412747717,0.1491,40776.0,40775.0,0.00020762]
[1646412747917,0.0491,40776.0,40775.0,0.00020762]
[1646412748316,0.0491,40776.0,40774.0,0.122736]
[1646412748525,0.0491,40776.0,40775.0,0.2197503]
[1646412748967,0.0491,40776.0,40775.0,0.2697503]
[1646412749365,0.02095467,40782.0,40775.0,0.47953426]
[1646412749565,0.02695467,40782.0,40776.0,0.33969512]
[1646412750767,0.02095467,40782.0,40777.0,0.00020085]
[1646412751769,0.02095467,40782.0,40776.0,0.061355]
[1646412751968,0.02095467,40782.0,40777.0,0.00020085]
[1646412752571,0.14367967,40782.0,40777.0,0.00020085]
[1646412753009,0.14367967,40782.0,40776.0,0.061355]
[1646412753209,0.14367967,40782.0,40777.0,0.00020759]
[1646412754211,0.02095467,40782.0,40776.0,0.061355]
[1646412754414,0.02095467,40782.0,40777.0,0.32474825]
[1646412754611,0.02095467,40782.0,40777.0,0.52474825]
[1646412754911,0.02095467,40782.0,40777.0,0.57474825]
[1646412755111,0.02095467,40782.0,40780.0,0.32391154]
[1646412755312,0.02095467,40782.0,40781.0,0.3]
[1646412755712,0.02095467,40782.0,40780.0,0.50979754]
[1646412756316,0.02095467,40782.0,40781.0,0.3]
[1646412756563,0.02095467,40782.0,40780.0,0.122693]
[1646412756765,0.0491,40781.0,40779.0,0.00020769]
[1646412757165,2.186478,40779.0,40773.0,0.00083089]
[1646412757364,0.1491,40778.0,40773.0,0.00083089]
[1646412757565,0.14,40774.0,40773.0,0.00083089]
[1646412757765,1.05,40773.0,40771.0,0.00083089]
[1646412757963,0.8791,40773.0,40771.0,0.00083089]
[1646412758165,0.122754,40772.0,40771.0,0.00083089]
[1646412758563,0.874154,40772.0,40771.0,0.00083089]
[1646412758766,1.063254,40772.0,40771.0,0.00083089]
[1646412758967,1.5317783,40772.0,40771.0,0.00083089]
[1646412759165,1.5317783,40772.0,40757.0,0.5359]
[1646412759166,0.7514,40770.0,40757.0,0.5359]
[1646412759364,0.061389,40767.0,40756.0,0.574369]
[1646412759564,0.061389,40767.0,40756.0,0.122769]
[1646412759565,0.0491,40766.0,40756.0,0.122769]
[1646412759767,0.0491,40766.0,40757.0,0.23481465]
[1646412760412,0.061388,40764.0,40759.0,0.00022326]
[1646412761516,0.061388,40764.0,40757.0,0.1]
[1646412761713,0.061388,40764.0,40759.0,0.00022326]
[1646412762512,0.061388,40764.0,40760.0,0.24886723]
[1646412762712,0.061388,40764.0,40759.0,0.1114395]
[1646412762912,0.061388,40764.0,40759.0,0.11166276]
[1646412763312,0.061388,40764.0,40759.0,0.00022326]
[1646412763812,0.0491,40766.0,40757.0,0.111388]
[1646412764067,0.0491,40766.0,40759.0,0.00022326]
[1646412764263,0.0491,40766.0,40764.0,0.061379]
[1646412764464,0.00287339,40765.0,40764.0,0.061379]
[1646412764664,0.00287339,40765.0,40763.0,0.122757]
[1646412764865,0.061382,40766.0,40763.0,0.122757]
[1646412765864,0.110482,40766.0,40763.0,0.122757]
[1646412766669,0.110482,40766.0,40764.0,0.2896611]
[1646412766868,0.00287339,40765.0,40764.0,0.2896611]
[1646412767065,0.00287339,40765.0,40763.0,0.122757]
[1646412767266,0.110482,40766.0,40763.0,0.122757]
[1646412768121,0.110482,40766.0,40762.0,0.21779394]
[1646412768727,0.0491,40766.0,40763.0,0.061378]
[1646412769126,0.39079508,40774.0,40764.0,0.20914145]
[1646412769127,0.13915116,40774.0,40764.0,0.20914145]
[1646412769327,0.00287335,40770.0,40764.0,0.20914145]
[1646412769525,0.001,40770.0,40766.0,0.3083827]
[1646412769724,0.001,40770.0,40766.0,0.3329227]
[1646412769925,0.001,40770.0,40767.0,0.02454]
[1646412770323,0.001,40770.0,40766.0,0.48132587]
[1646412770925,0.09005116,40774.0,40766.0,0.48132587]
[1646412771126,0.09005116,40774.0,40766.0,0.4811187]
[1646412771324,0.09005116,40774.0,40766.0,0.43123955]
[1646412771765,0.09005116,40774.0,40767.0,0.02454]
[1646412771972,0.09005116,40774.0,40770.0,0.02454]
[1646412772566,0.09005116,40774.0,40770.0,0.02474764]
[1646412773168,0.09005116,40774.0,40773.0,0.30492391]
[1646412776312,0.09005116,40774.0,40773.0,0.60492391]
[1646412776511,0.09005116,40774.0,40773.0,0.97315891]
[1646412776912,0.09005116,40774.0,40773.0,0.99769891]
[1646412777114,0.09005116,40774.0,40773.0,0.67946391]
[1646412777912,0.09005116,40774.0,40773.0,1.19769891]
[1646412778310,0.09005116,40774.0,40773.0,1.14769891]
[1646412779566,0.33591918,40779.0,40773.0,1.14769891]
[1646412779567,0.085078,40779.0,40774.0,1.54142937]
[1646412779773,0.085078,40779.0,40777.0,0.51414992]
[1646412780066,0.085078,40779.0,40778.0,0.668235]
[1646412781066,0.085078,40779.0,40778.0,0.692775]
[1646412781265,0.085078,40779.0,40778.0,0.792775]
[1646412782714,0.085078,40779.0,40778.0,0.67707639]
[1646412782914,0.085078,40779.0,40778.0,0.492775]
[1646412785317,0.02116224,40782.0,40779.0,1.768235]
[1646412785518,0.02116224,40782.0,40778.0,0.735881]
[1646412785519,0.02095467,40782.0,40781.0,0.518235]
[1646412785716,0.02116224,40782.0,40781.0,0.84062743]
[1646412785916,0.02116224,40782.0,40781.0,0.89062743]
[1646412786316,0.02116224,40782.0,40781.0,0.91516743]
[1646412786566,0.25075006,40788.0,40782.0,1.768235]
[1646412786765,0.25075006,40788.0,40784.0,0.430092]
[1646412786964,0.25075006,40788.0,40784.0,0.480092]
[1646412787165,0.25075006,40788.0,40786.0,0.368762]
[1646412787366,0.25075006,40789.0,40786.0,0.418762]
[1646412787566,0.25075006,40789.0,40787.0,0.29886351]
[1646412787870,0.35114072,40792.0,40787.0,0.29886351]
[1646412788066,0.25075846,40788.0,40787.0,0.66762551]
[1646412788366,0.25075846,40788.0,40787.0,0.6405732]
[1646412788968,8.666e-05,40790.0,40787.0,0.6405732]
[1646412789168,0.35114072,40792.0,40787.0,0.47779386]
[1646412789368,0.25073754,40788.0,40787.0,0.47779386]
[1646412789571,0.25073754,40788.0,40787.0,0.84655586]
[1646412790826,0.25073754,40789.0,40788.0,0.368762]
[1646412791028,0.25096086,40790.0,40788.0,0.430093]
[1646412791427,0.25073754,40789.0,40788.0,0.430093]
[1646412791625,0.25073754,40789.0,40788.0,0.061331]
[1646412791827,0.25073754,40789.0,40787.0,0.2718112]
[1646412792028,0.25073754,40788.0,40786.0,0.061329]
[1646412792430,0.25073754,40787.0,40786.0,0.061329]
[1646412792630,0.25073754,40787.0,40786.0,0.28563112]
[1646412793227,0.25073754,40787.0,40786.0,0.65439312]
[1646412793628,0.25273754,40788.0,40787.0,0.368762]
[1646412794062,0.002,40788.0,40786.0,0.28563112]
[1646412794262,0.25273754,40788.0,40787.0,0.368762]
[1646412794466,0.002,40788.0,40787.0,0.368762]
[1646412794862,0.25073754,40789.0,40787.0,0.368762]
[1646412795064,0.25073754,40789.0,40788.0,0.368762]
[1646412795262,0.00021505,40790.0,40786.0,0.28563112]
[1646412795463,0.25067353,40788.0,40786.0,0.28563112]
[1646412795665,0.25067353,40788.0,40787.0,0.368762]
[1646412795861,0.25067353,40788.0,40786.0,0.28563112]
[1646412796063,0.25067353,40788.0,40787.0,0.368762]
[1646412796462,0.25067353,40788.0,40786.0,0.28563112]
[1646412796762,0.25067353,40788.0,40786.0,0.22430212]
[1646412797164,0.25067353,40788.0,40785.0,0.122658]
[1646412798816,0.25067353,40788.0,40783.0,0.23355827]
[1646412799017,0.25067353,40787.0,40783.0,0.28355827]
[1646412799217,0.25067353,40787.0,40785.0,0.27899427]
[1646412799418,0.25067353,40788.0,40785.0,0.27899427]
[1646412800820,0.25067353,40788.0,40784.0,0.061345]
[1646412801217,0.25067353,40789.0,40784.0,0.161345]
[1646412801470,0.0002072,40788.0,40784.0,0.161345]
[1646412801871,0.0002072,40788.0,40785.0,0.5772741]
[1646412802076,0.0002072,40788.0,40785.0,0.99583347]
[1646412802270,0.007,40790.0,40787.0,0.368762]
[1646412802469,0.007,40790.0,40787.0,0.430084]
[1646412802671,0.00020757,40789.0,40787.0,0.430084]
[1646412803473,0.25067353,40793.0,40787.0,0.430084]
[1646412803672,0.00020757,40790.0,40787.0,0.430084]
[1646412804771,0.25067353,40793.0,40791.0,0.31024883]
[1646412804971,0.25067353,40793.0,40791.0,0.37157683]
[1646412805219,0.25064331,40792.0,40791.0,0.37157683]
[1646412805418,0.25064331,40792.0,40791.0,0.72901083]
[1646412805818,0.3008044,40795.0,40791.0,0.58981753]
[1646412806022,0.3008044,40795.0,40791.0,0.30344231]
[1646412806220,0.00020753,40794.0,40791.0,0.30344231]
[1646412806420,0.00020753,40794.0,40791.0,0.42609731]
[1646412807024,0.30101193,40794.0,40791.0,0.42609731]
[1646412807222,0.3008044,40794.0,40791.0,0.47609731]
[1646412807621,0.36213983,40794.0,40791.0,0.47609731]
[1646412807821,0.2908044,40793.0,40791.0,0.47609731]
[1646412808968,0.2908044,40793.0,40791.0,0.122655]
[1646412809172,0.41268368,40794.0,40791.0,0.06900362]
[1646412809369,0.084943,40793.0,40791.0,0.06900362]
[1646412810070,0.14,40792.0,40791.0,0.06900362]
[1646412810269,0.49114072,40792.0,40791.0,0.06900362]
[1646412810469,0.35114072,40792.0,40791.0,0.06900362]
[1646412812571,0.10746004,40792.0,40791.0,0.06900362]
[1646412812821,0.10746004,40793.0,40791.0,0.06900362]
[1646412813019,0.10746004,40792.0,40791.0,0.06900362]
[1646412813222,0.35105664,40792.0,40791.0,0.06900362]
[1646412813420,0.13164872,40792.0,40791.0,0.06900362]
[1646412814020,0.00020753,40794.0,40791.0,0.43767062]
[1646412814220,0.00020753,40794.0,40792.0,0.67147595]
[1646412814221,0.13129299,40794.0,40792.0,0.67147595]
[1646412814421,0.35113956,40793.0,40792.0,0.30280895]
[1646412814620,0.35113956,40793.0,40792.0,0.74015465]
[1646412814824,0.00020753,40795.0,40793.0,1.4]
[1646412815025,0.13107646,40797.0,40793.0,1.4]
[1646412815026,0.22005657,40796.0,40795.0,1.4]
[1646412815224,0.0011,40806.0,40797.0,1.4]
[1646412815421,0.0011,40806.0,40801.0,0.06522718]
[1646412815622,0.0011,40806.0,40803.0,0.517424]
[1646412815822,0.0011,40806.0,40804.0,0.468667]
[1646412816022,0.02508169,40805.0,40804.0,0.468667]
[1646412817275,0.02508169,40805.0,40804.0,0.968667]
[1646412817673,0.02508169,40805.0,40804.0,1.018667]
[1646412818073,0.02508169,40805.0,40804.0,1.318667]
[1646412818572,0.0011,40806.0,40804.0,1.318667]
[1646412818774,0.0011,40806.0,40805.0,0.668667]
[1646412818978,0.00108645,40807.0,40805.0,0.668667]
[1646412819175,0.02811053,40806.0,40805.0,0.69370578]
[1646412819374,0.0021,40818.0,40806.0,1.4]
[1646412819579,0.40112709,40818.0,40811.0,0.15]
[1646412819778,0.0067,40819.0,40812.0,0.66455463]
[1646412819975,0.00134567,40822.0,40815.0,1.4]
[1646412820229,0.00134567,40822.0,40816.0,0.418667]
[1646412820426,0.001,40822.0,40821.0,0.26003611]
[1646412821728,0.001,40822.0,40820.0,0.122577]
[1646412821729,0.085943,40822.0,40820.0,0.122577]
[1646412821926,0.085943,40822.0,40819.0,0.5]
[1646412821927,0.135943,40822.0,40819.0,0.5]
[1646412822326,0.120943,40822.0,40819.0,0.5]
[1646412822527,0.06129412,40820.0,40818.0,0.061298]
[1646412822726,0.05193932,40818.0,40815.0,0.24264404]
[1646412823728,0.084943,40817.0,40815.0,0.30394304]
[1646412824178,0.3,40816.0,40814.0,0.02784423]
[1646412824377,0.3,40816.0,40801.0,0.622612]
[1646412824378,0.084943,40815.0,40801.0,0.622612]
[1646412824574,0.1226418,40812.0,40801.0,0.5]
[1646412824773,0.084943,40811.0,40802.0,0.122631]
[1646412824973,0.296259,40811.0,40802.0,0.122631]
[1646412825174,0.296259,40811.0,40805.0,0.23384407]
[1646412825376,0.15,40811.0,40807.0,0.20796514]
[1646412825575,0.00022466,40809.0,40806.0,0.35500624]
[1646412825875,0.00022466,40809.0,40806.0,0.05500624]
[1646412826073,0.00022466,40809.0,40806.0,0.10500624]
[1646412826274,0.1,40811.0,40806.0,0.10500624]
[1646412826473,0.1,40811.0,40808.0,0.061306]
[1646412826678,0.00020958,40810.0,40808.0,0.061306]
[1646412826873,0.06151597,40810.0,40808.0,0.061306]
[1646412827474,0.06130639,40810.0,40808.0,0.061306]
[1646412827732,0.06130639,40810.0,40806.0,0.17261]
[1646412828333,0.06130639,40810.0,40806.0,0.12261]
[1646412828933,0.06150686,40810.0,40806.0,0.12261]
[1646412830032,0.06130639,40810.0,40806.0,0.12261]
[1646412830231,0.06150686,40810.0,40806.0,0.12261]
[1646412830633,0.06150686,40810.0,40805.0,0.23384407]
[1646412831234,0.06130639,40810.0,40805.0,0.23384407]
[1646412831474,0.06150818,40810.0,40805.0,0.23384407]
[1646412832277,0.06130639,40810.0,40805.0,0.23384407]
[1646412832676,0.06150152,40810.0,40805.0,0.23384407]
[1646412833477,0.06130639,40810.0,40805.0,0.23384407]
[1646412833879,0.06150166,40810.0,40805.0,0.23384407]
[1646412834781,0.06130639,40810.0,40805.0,0.23384407]
[1646412834982,0.06150166,40810.0,40805.0,0.23384407]
[1646412835416,0.06105826,40810.0,40805.0,0.23384407]
[1646412835622,0.06105826,40810.0,40802.0,0.122608]
[1646412835820,0.06132,40808.0,40799.0,0.3]
[1646412836025,0.06131845,40806.0,40798.0,0.122626]
[1646412836421,0.134043,40805.0,40796.0,0.122636]
[1646412836622,0.31936288,40795.0,40787.0,0.9236]
[1646412836820,0.15,40795.0,40789.0,0.061334]
[1646412837025,0.06133175,40793.0,40789.0,0.061334]
[1646412837421,0.06133175,40793.0,40788.0,0.2373363]
[1646412837821,0.06133175,40793.0,40785.0,0.245219]
[1646412838820,0.06133175,40793.0,40789.0,0.27798246]
[1646412839068,0.06133175,40793.0,40785.0,0.245219]
[1646412839269,0.1,40793.0,40790.0,0.26938679]
[1646412839469,0.0491,40798.0,40790.0,0.26938679]
[1646412839872,0.002,40797.0,40790.0,0.26938679]
[1646412840272,0.002,40797.0,40794.0,0.27638069]
[1646412840472,0.06332898,40797.0,40794.0,0.27638069]
[1646412840870,0.06332898,40797.0,40793.0,0.061328]
[1646412841072,0.06132898,40797.0,40793.0,0.061328]
[1646412841273,0.06132898,40797.0,40791.0,0.06133]
[1646412841274,0.084943,40796.0,40791.0,0.06133]
[1646412841576,0.12266598,40797.0,40789.0,0.061333]
[1646412841773,0.17266598,40797.0,40789.0,0.061333]
[1646412841974,0.17266598,40797.0,40789.0,0.32600921]
[1646412842177,0.17266598,40797.0,40789.0,0.061333]
[1646412842375,0.06133813,40793.0,40784.0,0.184007]
[1646412842577,0.06133813,40793.0,40782.0,0.46891721]
[1646412842578,0.084943,40792.0,40782.0,0.46891721]
[1646412842830,0.084943,40792.0,40782.0,0.1236]
[1646412842831,0.12268792,40792.0,40782.0,0.1236]
[1646412843037,0.12268792,40792.0,40782.0,0.28697568]
[1646412843038,0.17268792,40792.0,40782.0,0.28697568]
[1646412844032,0.17268792,40792.0,40783.0,0.30953764]
[1646412844232,0.061347,40789.0,40779.0,0.44078293]
[1646412844436,0.12270543,40787.0,40779.0,0.1324]
[1646412844637,0.0491,40786.0,40779.0,0.00078293]
[1646412845635,0.17180617,40786.0,40778.0,0.001]
[1646412845835,0.17180617,40786.0,40778.0,0.00119573]
[1646412846038,0.22180617,40786.0,40778.0,0.00119573]
[1646412846237,0.22180617,40786.0,40780.0,0.26765306]
[1646412846874,0.084943,40785.0,40780.0,0.26765306]
[1646412847071,0.0491,40784.0,40780.0,0.26765306]
[1646412847475,0.0491,40784.0,40778.0,0.06254373]
[1646412847672,0.0491,40784.0,40783.0,0.05470666]
[1646412848070,0.0341,40784.0,40783.0,0.05470666]
[1646412848472,0.119043,40784.0,40783.0,0.05470666]
[1646412848673,0.119043,40784.0,40781.0,0.061347]
[1646412848872,0.0341,40784.0,40783.0,0.29344209]
[1646412849077,0.119043,40784.0,40783.0,0.29344209]
[1646412849473,0.0341,40784.0,40783.0,0.29344209]
[1646412850525,0.107,40789.0,40785.0,0.06313443]
[1646412850726,0.157,40789.0,40785.0,0.12447243]
[1646412851127,0.15,40789.0,40785.0,0.12447243]
[1646412851523,0.1,40789.0,40785.0,0.12447243]
[1646412851725,0.1,40789.0,40785.0,0.18580943]
[1646412851924,0.1,40789.0,40785.0,0.122675]
[1646412852224,0.1,40789.0,40788.0,0.0274]
[1646412852225,0.184943,40789.0,40788.0,0.0274]
[1646412853826,0.1,40789.0,40788.0,0.0274]
[1646412854077,0.184943,40789.0,40788.0,0.0274]
[1646412856077,0.1,40789.0,40788.0,0.33831818]
[1646412856679,0.184943,40789.0,40788.0,0.0274]
[1646412856878,0.234943,40789.0,40788.0,0.0274]
[1646412857078,0.44171459,40789.0,40788.0,0.0274]
[1646412857278,0.234943,40789.0,40788.0,0.0274]
[1646412857478,0.284043,40789.0,40788.0,0.0274]
[1646412857738,0.56961408,40789.0,40788.0,0.0274]
[1646412858338,0.86961408,40789.0,40788.0,0.0274]
[1646412858737,0.56961408,40789.0,40788.0,0.0274]
[1646412859139,0.86961408,40789.0,40788.0,0.0274]
[1646412859838,1.4,40788.0,40779.0,0.00078223]
[1646412860041,0.12272811,40786.0,40778.0,0.001]
[1646412860237,0.434043,40785.0,40779.0,0.00078223]
[1646412860441,0.184043,40785.0,40779.0,0.00078223]
[1646412861240,0.184043,40785.0,40780.0,0.061357]
[1646412861499,0.0991,40785.0,40780.0,0.061357]
[1646412861698,0.0491,40785.0,40780.0,0.061357]
[1646412862199,0.0491,40785.0,40781.0,0.122697]
[1646412862799,0.070301,40784.0,40781.0,0.122697]
[1646412863003,0.070287,40784.0,40781.0,0.122697]
[1646412863199,0.070287,40784.0,40783.0,0.20386554]
[1646412863399,0.10800727,40784.0,40783.0,0.20386554]
[1646412863602,0.1,40789.0,40784.0,0.061342]
[1646412863801,0.007,40788.0,40784.0,0.061342]
[1646412863999,0.007,40788.0,40786.0,0.06853453]